fUSD/lending_fUSD_20240528
["ID","MTS","AMOUNT","RATE_DAILY","PERIOD"]
[328137441,1716930644513,-500.0,0.00027397,2]
[328137442,1716930644523,-500.0,0.00027397,2]
[328137443,1716930644532,-500.0,0.00027397,2]
[328137444,1716930644541,-500.0,0.00027397,2]
[328137445,1716930644550,-500.0,0.00027397,2]
[328137446,1716930644559,-500.0,0.00027397,2]
[328137447,1716930644569,-500.0,0.00027397,2]
[328137448,1716930644578,-500.0,0.00027397,2]
[328137449,1716930644587,-909.32,0.00027397,2]
[328137450,1716930644596,-500.0,0.00027397,2]
[328137451,1716930644605,-500.0,0.00027397,2]
[328137452,1716930644614,-302.80861373,0.00027397,2]
[328137453,1716930644623,-500.0,0.00027397,2]
[328137454,1716930644632,-500.0,0.00027397,2]
[328137455,1716930644641,-500.0,0.00027397,2]
[328137456,1716930644650,-500.0,0.00027397,2]
[328137457,1716930644659,-500.0,0.00027397,2]
[328137458,1716930644668,-500.0,0.00027397,2]
[328137459,1716930644677,-270.99593271,0.00027397,2]
[328137460,1716930644686,-500.0,0.00027397,2]
[328137461,1716930644695,-500.0,0.00027397,2]
[328137462,1716930644704,-500.0,0.00027397,2]
[328137463,1716930644712,-594.79,0.00027397,2]
[328137464,1716930644722,-396.39213395,0.00027397,2]
[328137465,1716930644731,-500.0,0.00027397,2]
[328137466,1716930644740,-569.9,0.00027397,2]
[328137467,1716930644749,-500.0,0.00027397,2]
[328137468,1716930644758,-500.0,0.00027397,2]
[328137469,1716930644767,-500.0,0.00027397,2]
[328137470,1716930644776,-500.0,0.00027397,2]
[328137471,1716930644788,-500.0,0.00027397,2]
[328137472,1716930644798,-500.0,0.00027397,2]
[328137473,1716930644808,-500.0,0.00027397,2]
[328137474,1716930644817,-500.0,0.00027397,2]
[328137475,1716930644827,-967.79,0.00027397,2]
[328137476,1716930644836,-500.0,0.00027397,2]
[328137477,1716930644845,-1363.1,0.00027397,2]
[328137478,1716930644855,-667.3,0.00027397,2]
[328137479,1716930644864,-500.0,0.00027397,2]
[328137480,1716930644874,-500.0,0.00027397,2]
[328137481,1716930644883,-500.0,0.00027397,2]
[328137482,1716930644893,-500.0,0.00027397,2]
[328137483,1716930644902,-500.0,0.00027397,2]
[328137484,1716930644911,-500.0,0.00027397,2]
[328137485,1716930644921,-500.0,0.00027397,2]
[328137486,1716930644930,-500.0,0.00027397,2]
[328137487,1716930644941,-500.0,0.00027397,2]
[328137488,1716930644950,-500.0,0.00027397,2]
[328137489,1716930644959,-500.0,0.00027397,2]
[328137490,1716930644968,-500.0,0.00027397,2]
[328137491,1716930644977,-500.0,0.00027397,2]
[328137492,1716930644987,-500.0,0.00027397,2]
[328137493,1716930644996,-670.95,0.00027397,2]
[328137494,1716930645006,-813.82,0.00027397,2]
[328137495,1716930645015,-500.0,0.00027397,2]
[328137496,1716930645025,-500.0,0.00027397,2]
[328137497,1716930645034,-260.47435127,0.00027397,2]
[328137498,1716930645043,-500.0,0.00027397,2]
[328137499,1716930645052,-500.0,0.00027397,2]
[328137500,1716930645062,-500.0,0.00027397,2]
[328137501,1716930645071,-500.0,0.00027397,2]
[328137502,1716930645080,-500.0,0.00027397,2]
[328137503,1716930645090,-682.1,0.00027397,2]
[328137504,1716930645099,-500.0,0.00027397,2]
[328137505,1716930645108,-613.37,0.00027397,2]
[328137506,1716930645116,-500.0,0.00027397,2]
[328137507,1716930645126,-870.5,0.00027397,2]
[328137508,1716930645135,-500.0,0.00027397,2]
[328137509,1716930645144,-500.0,0.00027397,2]
[328137510,1716930645153,-501.94956617,0.00027397,2]
[328137511,1716930645162,-891.34,0.00027397,2]
[328137512,1716930645172,-746.34,0.00027397,2]
[328137513,1716930645181,-500.0,0.00027397,2]
[328137514,1716930645191,-500.0,0.00027397,2]
[328137515,1716930645200,-500.0,0.00027397,2]
[328137516,1716930645209,-500.0,0.00027397,2]
[328137518,1716930645219,-613.05,0.00027397,2]
[328137519,1716930645228,-500.0,0.00027397,2]
[328137520,1716930645237,-758.6,0.00027397,2]
[328137521,1716930645247,-500.0,0.00027397,2]
[328137522,1716930645255,-500.0,0.00027397,2]
[328137523,1716930645265,-500.0,0.00027397,2]
[328137524,1716930645275,-500.0,0.00027397,2]
[328137525,1716930645284,-500.0,0.00027397,2]
[328137526,1716930645295,-527.93,0.00027397,2]
[328137527,1716930645307,-535.29,0.00027397,2]
[328137528,1716930645315,-500.0,0.00027397,2]
[328137529,1716930645325,-500.0,0.00027397,2]
[328137530,1716930645335,-500.0,0.00027397,2]
[328137531,1716930645344,-500.0,0.00027397,2]
[328137532,1716930645354,-500.0,0.00027397,2]
[328137533,1716930645363,-500.0,0.00027397,2]
[328137534,1716930645372,-500.0,0.00027397,2]
[328137535,1716930645383,-500.0,0.00027397,2]
[328137536,1716930645392,-556.26,0.00027397,2]
[328137537,1716930645401,-619.31379501,0.00027397,2]
[328137538,1716930645410,-617.75,0.00027397,2]
[328137539,1716930645419,-500.0,0.00027397,2]
[328137540,1716930645428,-655.52,0.00027397,2]
[328137541,1716930645437,-500.0,0.00027397,2]
[328137542,1716930645447,-319.9003923,0.00027397,2]
[328137544,1716930645457,-500.0,0.00027397,2]
[328137545,1716930645466,-500.0,0.00027397,2]
[328137546,1716930645476,-982.73,0.00027397,2]
[328137547,1716930645485,-500.0,0.00027397,2]
[328137548,1716930645494,-500.0,0.00027397,2]
[328137549,1716930645503,-500.0,0.00027397,2]
[328137550,1716930645512,-879.75,0.00027397,2]
[328137551,1716930645523,-500.0,0.00027397,2]
[328137552,1716930645532,-500.0,0.00027397,2]
[328137553,1716930645541,-500.0,0.00027397,2]
[328137554,1716930645551,-500.0,0.00027397,2]
[328137555,1716930645561,-598.93,0.00027397,2]
[328137556,1716930645570,-500.0,0.00027397,2]
[328137557,1716930645579,-500.0,0.00027397,2]
[328137558,1716930645588,-500.0,0.00027397,2]
[328137559,1716930645597,-500.0,0.00027397,2]
[328137560,1716930645607,-500.0,0.00027397,2]
[328137561,1716930645616,-607.01,0.00027397,2]
[328137562,1716930645626,-500.0,0.00027397,2]
[328137563,1716930645635,-869.48,0.00027397,2]
[328137564,1716930645643,-500.0,0.00027397,2]
[328137565,1716930645653,-500.0,0.00027397,2]
[328137566,1716930645662,-500.0,0.00027397,2]
[328137567,1716930645671,-500.0,0.00027397,2]
[328137568,1716930645680,-515.25,0.00027397,2]
[328137569,1716930645689,-500.0,0.00027397,2]
[328137570,1716930645698,-500.0,0.00027397,2]
[328137571,1716930645707,-501.39,0.00027397,2]
[328137572,1716930645716,-500.0,0.00027397,2]
[328137573,1716930645725,-500.0,0.00027397,2]
[328137574,1716930645735,-500.0,0.00027397,2]
[328137575,1716930645744,-500.0,0.00027397,2]
[328137576,1716930645753,-500.0,0.00027397,2]
[328137577,1716930645761,-500.0,0.00027397,2]
[328137578,1716930645771,-500.0,0.00027397,2]
[328137579,1716930645781,-500.0,0.00027397,2]
[328137580,1716930645790,-500.0,0.00027397,2]
[328137581,1716930645800,-1260.25,0.00027397,2]
[328137582,1716930645810,-500.0,0.00027397,2]
[328137583,1716930645819,-500.0,0.00027397,2]
[328137584,1716930645828,-500.0,0.00027397,2]
[328137585,1716930645838,-500.0,0.00027397,2]
[328137586,1716930645848,-500.0,0.00027397,2]
[328137587,1716930645858,-500.0,0.00027397,2]
[328137588,1716930645867,-500.0,0.00027397,2]
[328137589,1716930645985,-500.0,0.00027397,2]
[328137590,1716930645995,-554.17,0.00027397,2]
[328137591,1716930646005,-1185.96,0.00027397,2]
[328137592,1716930646014,-500.0,0.00027397,2]
[328137593,1716930646023,-500.0,0.00027397,2]
[328137594,1716930646033,-500.0,0.00027397,2]
[328137595,1716930646042,-500.0,0.00027397,2]
[328137596,1716930646052,-542.54134461,0.00027397,2]
[328137597,1716930646062,-172.94,0.00027397,2]
[328137598,1716930646071,-500.0,0.00027397,2]
[328137599,1716930646080,-500.0,0.00027397,2]
[328137600,1716930646089,-500.0,0.00027397,2]
[328137601,1716930646099,-500.0,0.00027397,2]
[328137602,1716930646108,-500.0,0.00027397,2]
[328137603,1716930646117,-500.0,0.00027397,2]
[328137604,1716930646126,-500.0,0.00027397,2]
[328137605,1716930646135,-500.0,0.00027397,2]
[328137606,1716930646144,-500.0,0.00027397,2]
[328137607,1716930646153,-500.0,0.00027397,2]
[328137608,1716930646163,-512.07,0.00027397,2]
[328137609,1716930646171,-500.0,0.00027397,2]
[328137610,1716930646181,-500.0,0.00027397,2]
[328137611,1716930646189,-500.0,0.00027397,2]
[328137612,1716930646198,-500.0,0.00027397,2]
[328137613,1716930646207,-439.53846016,0.00027397,2]
[328137614,1716930646216,-500.0,0.00027397,2]
[328137615,1716930646224,-577.36,0.00027397,2]
[328137616,1716930646233,-500.0,0.00027397,2]
[328137617,1716930646242,-500.0,0.00027397,2]
[328137618,1716930646251,-544.23,0.00027397,2]
[328137619,1716930646259,-500.0,0.00027397,2]
[328137620,1716930646268,-917.76,0.00027397,2]
[328137621,1716930646278,-500.0,0.00027397,2]
[328137622,1716930646288,-500.0,0.00027397,2]
[328137623,1716930646300,-500.0,0.00027397,2]
[328137624,1716930646309,-500.0,0.00027397,2]
[328137625,1716930646318,-500.0,0.00027397,2]
[328137626,1716930646328,-500.0,0.00027397,2]
[328137628,1716930646337,-500.0,0.00027397,2]
[328137629,1716930646346,-500.0,0.00027397,2]
[328137630,1716930646355,-500.0,0.00027397,2]
[328137631,1716930646365,-715.45,0.00027397,2]
[328137632,1716930646379,-445.61696243,0.00027397,2]
[328137633,1716930646389,-500.0,0.00027397,2]
[328137634,1716930646399,-504.89,0.00027397,2]
[328137635,1716930646408,-500.0,0.00027397,2]
[328137636,1716930646418,-500.0,0.00027397,2]
[328137637,1716930646427,-500.0,0.00027397,2]
[328137638,1716930646437,-500.0,0.00027397,2]
[328137639,1716930646447,-500.0,0.00027397,2]
[328137640,1716930646456,-500.0,0.00027397,2]
[328137641,1716930646467,-937.7,0.00027397,2]
[328137642,1716930646476,-500.0,0.00027397,2]
[328137643,1716930646485,-611.87,0.00027397,2]
[328137644,1716930646494,-824.89,0.00027397,2]
[328137645,1716930646504,-500.0,0.00027397,2]
[328137646,1716930646513,-500.0,0.00027397,2]
[328137647,1716930646524,-500.0,0.00027397,2]
[328137648,1716930646533,-500.0,0.00027397,2]
[328137649,1716930646542,-739.81,0.00027397,2]
[328137650,1716930646551,-500.0,0.00027397,2]
[328137651,1716930646562,-479.96246107,0.00027397,2]
[328137652,1716930646571,-500.0,0.00027397,2]
[328137653,1716930646580,-500.0,0.00027397,2]
[328137654,1716930646589,-500.0,0.00027397,2]
[328137655,1716930646598,-1320.63,0.00027397,2]
[328137656,1716930646607,-500.0,0.00027397,2]
[328137657,1716930646617,-1793.48,0.00027397,2]
[328137658,1716930646626,-500.0,0.00027397,2]
[328137659,1716930646635,-500.0,0.00027397,2]
[328137660,1716930646644,-1192.64,0.00027397,2]
[328137661,1716930646653,-500.0,0.00027397,2]
[328137662,1716930646662,-500.0,0.00027397,2]
[328137663,1716930646671,-500.0,0.00027397,2]
[328137664,1716930646681,-850.59,0.00027397,2]
[328137665,1716930646690,-500.0,0.00027397,2]
[328137666,1716930646699,-550.9,0.00027397,2]
[328137667,1716930646708,-656.92,0.00027397,2]
[328137668,1716930646717,-9315.09,0.00027397,2]
[328137669,1716930646726,-806.35,0.00027397,2]
[328137670,1716930646736,-500.0,0.00027397,2]
[328137671,1716930646745,-15327.51,0.00027397,2]
[328137672,1716930646755,-635.68,0.00027397,2]
[328137673,1716930646764,-3419.04,0.00027397,2]
[328137674,1716930646774,-1271.68,0.00027397,2]
[328137675,1716930646783,-525.9,0.00027397,2]
[328137676,1716930646793,-1237.95,0.00027397,2]
[328137677,1716930646802,-500.0,0.00027397,2]
[328137678,1716930646811,-5036.02,0.00027397,2]
[328137679,1716930646821,-2402.16,0.00027397,2]
[328137680,1716930646831,-500.0,0.00027397,2]
[328137681,1716930646840,-500.0,0.00027397,2]
[328137682,1716930646849,-583.74,0.00027397,2]
[328137683,1716930646859,-500.0,0.00027397,2]
[328137684,1716930646868,-1081.68,0.00027397,2]
[328137685,1716930646877,-2135.42,0.00027397,2]
[328137686,1716930646886,-500.0,0.00027397,2]
[328137687,1716930646896,-500.0,0.00027397,2]
[328137688,1716930646905,-500.0,0.00027397,2]
[328137689,1716930646915,-500.0,0.00027397,2]
[328137690,1716930646924,-495.83090182,0.00027397,2]
[328137691,1716930646934,-19373.19,0.00027397,2]
[328137692,1716930646943,-874.24,0.00027397,2]
[328137693,1716930646952,-832.12,0.00027397,2]
[328137694,1716930646962,-889.71,0.00027397,2]
[328137695,1716930646971,-1494.87,0.00027397,2]
[328137696,1716930646980,-588.22,0.00027397,2]
[328137697,1716930646990,-753.43,0.00027397,2]
[328137698,1716930646999,-500.0,0.00027397,2]
[328137699,1716930647008,-500.0,0.00027397,2]
[328137700,1716930647017,-656.49,0.00027397,2]
[328137701,1716930647028,-526.3511785,0.00027397,2]
[328137702,1716930647038,-1040.11,0.00027397,2]
[328137703,1716930647047,-5379.01,0.00027397,2]
[328137704,1716930647056,-1151.4,0.00027397,2]
[328137705,1716930647066,-657.54,0.00027397,2]
[328137706,1716930647075,-2503.88,0.00027397,2]
[328137707,1716930647084,-500.0,0.00027397,2]
[328137708,1716930647093,-500.0,0.00027397,2]
[328137709,1716930647102,-500.0,0.00027397,2]
[328137710,1716930647112,-500.0,0.00027397,2]
[328137711,1716930647121,-992.19,0.00027397,2]
[328137712,1716930647130,-500.0,0.00027397,2]
[328137713,1716930647140,-591.51,0.00027397,2]
[328137714,1716930647150,-523.58,0.00027397,2]
[328137715,1716930647159,-500.0,0.00027397,2]
[328137716,1716930647168,-2469.11,0.00027397,2]
[328137717,1716930647178,-500.0,0.00027397,2]
[328137718,1716930647188,-500.0,0.00027397,2]
[328137719,1716930647197,-604.6,0.00027397,2]
[328137720,1716930647206,-500.0,0.00027397,2]
[328137721,1716930647216,-500.0,0.00027397,2]
[328137722,1716930647225,-1881.26,0.00027397,2]
[328137723,1716930647234,-500.0,0.00027397,2]
[328137724,1716930647243,-1071.3,0.00027397,2]
[328137725,1716930647252,-1270.47,0.00027397,2]
[328137726,1716930647261,-8259.77,0.00027397,2]
[328137727,1716930647270,-500.0,0.00027397,2]
[328137728,1716930647281,-1123.23,0.00027397,2]
[328137729,1716930647290,-233.69747023,0.00027397,2]
[328137730,1716930647302,-500.0,0.00027397,2]
[328137731,1716930647311,-500.0,0.00027397,2]
[328137732,1716930647320,-2563.92,0.00027397,2]
[328137733,1716930647330,-500.0,0.00027397,2]
[328137734,1716930647341,-500.0,0.00027397,2]
[328137735,1716930647350,-1027.88,0.00027397,2]
[328137736,1716930647359,-772.72,0.00027397,2]
[328137737,1716930647368,-500.0,0.00027397,2]
[328137738,1716930647379,-500.0,0.00027397,2]
[328137739,1716930647388,-887.31,0.00027397,2]
[328137740,1716930647397,-914.87,0.00027397,2]
[328137741,1716930647406,-500.0,0.00027397,2]
[328137742,1716930647415,-4971.2,0.00027397,2]
[328137743,1716930647424,-500.0,0.00027397,2]
[328137744,1716930647433,-1127.13,0.00027397,2]
[328137745,1716930647442,-500.0,0.00027397,2]
[328137746,1716930647452,-571.26,0.00027397,2]
[328137747,1716930647462,-500.0,0.00027397,2]
[328137748,1716930647471,-500.0,0.00027397,2]
[328137749,1716930647480,-590.27,0.00027397,2]
[328137750,1716930647489,-500.0,0.00027397,2]
[328137751,1716930647498,-500.0,0.00027397,2]
[328137752,1716930647507,-500.0,0.00027397,2]
[328137753,1716930647515,-606.32,0.00027397,2]
[328137754,1716930647524,-824.0,0.00027397,2]
[328137755,1716930647534,-500.0,0.00027397,2]
[328137756,1716930647543,-745.85,0.00027397,2]
[328137757,1716930647552,-853.64,0.00027397,2]
[328137758,1716930647561,-585.71,0.00027397,2]
[328137759,1716930647570,-1137.45,0.00027397,2]
[328137760,1716930647579,-1448.06,0.00027397,2]
[328137761,1716930647588,-539.51,0.00027397,2]
[328137762,1716930647597,-2302.76,0.00027397,2]
[328137763,1716930647606,-500.0,0.00027397,2]
[328137764,1716930647615,-3336.18,0.00027397,2]
[328137765,1716930647624,-500.0,0.00027397,2]
[328137766,1716930647633,-1236.12,0.00027397,2]
[328137767,1716930647642,-500.0,0.00027397,2]
[328137768,1716930647651,-500.0,0.00027397,2]
[328137769,1716930647660,-500.0,0.00027397,2]
[328137770,1716930647669,-500.0,0.00027397,2]
[328137771,1716930647678,-500.0,0.00027397,2]
[328137772,1716930647687,-885.34,0.00027397,2]
[328137773,1716930647696,-13852.98,0.00027397,2]
[328137774,1716930647705,-1036.79,0.00027397,2]
[328137775,1716930647714,-602.93,0.00027397,2]
[328137776,1716930647723,-500.0,0.00027397,2]
[328137777,1716930647732,-1313.69,0.00027397,2]
[328137778,1716930647741,-2000.0,0.00027397,30]
[328137779,1716930647750,-1592.22,0.00027397,2]
[328137780,1716930647760,-916.61,0.00027397,2]
[328137781,1716930647768,-1158.67,0.00027397,2]
[328137782,1716930647778,-500.0,0.00027397,2]
[328137783,1716930647787,-500.0,0.00027397,2]
[328137784,1716930647797,-2650.73,0.00027397,2]
[328137785,1716930647806,-4639.4,0.00027397,2]
[328137786,1716930647816,-500.0,0.00027397,2]
[328137787,1716930647825,-500.0,0.00027397,2]
[328137788,1716930647834,-720.94,0.00027397,2]
[328137789,1716930647843,-850.51,0.00027397,2]
[328137790,1716930647852,-1077.58,0.00027397,2]
[328137791,1716930647861,-1305.79,0.00027397,2]
[328137792,1716930647870,-1212.71,0.00027397,2]
[328137793,1716930647879,-500.0,0.00027397,2]
[328137794,1716930647888,-564.13,0.00027397,2]
[328137795,1716930647897,-789.13,0.00027397,2]
[328137796,1716930647906,-500.0,0.00027397,2]
[328137797,1716930648017,-500.0,0.00027397,2]
[328137798,1716930648027,-928.91,0.00027397,2]
[328137799,1716930648036,-500.0,0.00027397,2]
[328137800,1716930648045,-500.0,0.00027397,2]
[328137801,1716930648054,-500.0,0.00027397,2]
[328137802,1716930648063,-920.12,0.00027397,2]
[328137803,1716930648072,-717.42,0.00027397,2]
[328137804,1716930648082,-881.35,0.00027397,2]
[328137805,1716930648091,-500.0,0.00027397,2]
[328137806,1716930648100,-654.73,0.00027397,2]
[328137807,1716930648110,-500.0,0.00027397,2]
[328137808,1716930648119,-500.0,0.00027397,2]
[328137809,1716930648129,-3338.18,0.00027397,2]
[328137810,1716930648138,-500.0,0.00027397,2]
[328137811,1716930648147,-500.0,0.00027397,2]
[328137812,1716930648156,-1966.13,0.00027397,2]
[328137813,1716930648165,-1025.06059215,0.00027397,2]
[328137814,1716930648175,-570.33,0.00027397,2]
[328137815,1716930648184,-500.0,0.00027397,2]
[328137816,1716930648193,-500.0,0.00027397,2]
[328137817,1716930648202,-500.0,0.00027397,2]
[328137818,1716930648211,-500.0,0.00027397,2]
[328137819,1716930648220,-500.0,0.00027397,2]
[328137820,1716930648230,-1420.49,0.00027397,2]
[328137821,1716930648239,-647.0,0.00027397,2]
[328137822,1716930648248,-1625.97,0.00027397,2]
[328137823,1716930648257,-500.0,0.00027397,2]
[328137824,1716930648267,-500.0,0.00027397,2]
[328137825,1716930648276,-1101.55,0.00027397,2]
[328137826,1716930648285,-500.0,0.00027397,2]
[328137827,1716930648297,-500.0,0.00027397,2]
[328137828,1716930648308,-500.0,0.00027397,2]
[328137829,1716930648317,-5271.34,0.00027397,2]
[328137830,1716930648327,-4085.09,0.00027397,2]
[328137831,1716930648336,-896.38,0.00027397,2]
[328137832,1716930648346,-500.0,0.00027397,2]
[328137833,1716930648356,-500.0,0.00027397,2]
[328137834,1716930648364,-3085.09,0.00027397,2]
[328137835,1716930648375,-1027.97,0.00027397,2]
[328137836,1716930648384,-678.18,0.00027397,2]
[328137837,1716930648393,-500.0,0.00027397,2]
[328137838,1716930648403,-607.8,0.00027397,2]
[328137839,1716930648412,-707.12,0.00027397,2]
[328137840,1716930648421,-500.0,0.00027397,2]
[328137841,1716930648430,-2974.94,0.00027397,2]
[328137842,1716930648439,-500.0,0.00027397,2]
[328137843,1716930648449,-1217.15,0.00027397,2]
[328137844,1716930648458,-1190.26,0.00027397,2]
[328137845,1716930648467,-592.19,0.00027397,2]
[328137846,1716930648476,-500.0,0.00027397,2]
[328137847,1716930648486,-4371.46,0.00027397,2]
[328137848,1716930648495,-1044.37,0.00027397,2]
[328137849,1716930648504,-500.0,0.00027397,2]
[328137850,1716930648513,-500.0,0.00027397,2]
[328137851,1716930648523,-500.0,0.00027397,2]
[328137852,1716930648534,-500.0,0.00027397,2]
[328137853,1716930648543,-1474.98,0.00027397,2]
[328137854,1716930648552,-513.35,0.00027397,2]
[328137855,1716930648561,-500.0,0.00027397,2]
[328137856,1716930648570,-500.0,0.00027397,2]
[328137857,1716930648580,-500.0,0.00027397,2]
[328137858,1716930648589,-3176.31,0.00027397,2]
[328137859,1716930648598,-687.58,0.00027397,2]
[328137860,1716930648607,-3513.06,0.00027397,2]
[328137861,1716930648616,-577.15674191,0.00027397,2]
[328137862,1716930648625,-576.75,0.00027397,2]
[328137863,1716930648635,-500.0,0.00027397,2]
[328137864,1716930648644,-500.0,0.00027397,2]
[328137865,1716930648653,-705.7,0.00027397,2]
[328137866,1716930648663,-503.73,0.00027397,2]
[328137867,1716930648672,-500.0,0.00027397,2]
[328137868,1716930648681,-2801.64,0.00027397,2]
[328137869,1716930648690,-500.0,0.00027397,2]
[328137870,1716930648700,-4000.0,0.00027397,30]
[328137871,1716930648709,-939.66,0.00027397,10]
[328137872,1716930648718,-783.05,0.00027397,10]
[328137873,1716930648728,-652.54,0.00027397,10]
[328137874,1716930648737,-152.67997745,0.00027401,2]
[328137875,1716930648747,-152.67997745,0.00027412,2]
[328137876,1716930648756,-372.47,0.00027446,2]
[328137877,1716930648765,-157.052905,0.00027448,22]
[328137878,1716930648776,-154.71,0.0002752,2]
[328137879,1716930648785,-1071.84695952,0.0002767,15]
[328137880,1716930648794,-211253.68205951,0.00027671,11]
[328137881,1716930648804,-500.0,0.00027671,2]
[328137882,1716930648813,-500.0,0.00027671,2]
[328137883,1716930648823,-500.0,0.00027671,2]
[328137884,1716930648832,-500.0,0.00027671,2]
[328137885,1716930648841,-500.0,0.00027671,2]
[328137886,1716930648850,-500.0,0.00027671,2]
[328137887,1716930648859,-500.0,0.00027671,2]
[328137888,1716930648868,-500.0,0.00027671,2]
[328137889,1716930648878,-500.0,0.00027671,2]
[328137890,1716930648887,-500.0,0.00027671,2]
[328137891,1716930648896,-909.32,0.00027671,2]
[328137892,1716930648905,-500.0,0.00027671,2]
[328137893,1716930648914,-500.0,0.00027671,2]
[328137894,1716930648923,-500.0,0.00027671,2]
[328137895,1716930648932,-500.0,0.00027671,2]
[328137896,1716930648941,-500.0,0.00027671,2]
[328137897,1716930648951,-500.0,0.00027671,2]
[328137898,1716930648960,-500.0,0.00027671,2]
[328137899,1716930648969,-500.0,0.00027671,2]
[328137900,1716930648978,-645.89434643,0.00027671,2]
[328137901,1716930648988,-500.0,0.00027671,2]
[328137902,1716930648997,-500.0,0.00027671,2]
[328137903,1716930649007,-594.79,0.00027671,2]
[328137904,1716930649016,-500.0,0.00027671,2]
[328137905,1716930649026,-569.9,0.00027671,2]
[328137906,1716930649035,-500.0,0.00027671,2]
[328137907,1716930649045,-500.0,0.00027671,2]
[328137908,1716930649054,-500.0,0.00027671,2]
[328137909,1716930649063,-500.0,0.00027671,2]
[328137910,1716930649073,-500.0,0.00027671,2]
[328137911,1716930649082,-500.0,0.00027671,2]
[328137912,1716930649092,-500.0,0.00027671,2]
[328137913,1716930649101,-500.0,0.00027671,2]
[328137914,1716930649111,-967.79,0.00027671,2]
[328137915,1716930649120,-500.0,0.00027671,2]
[328137916,1716930649129,-1363.1,0.00027671,2]
[328137917,1716930649138,-667.3,0.00027671,2]
[328137918,1716930649148,-500.0,0.00027671,2]
[328137919,1716930649157,-500.0,0.00027671,2]
[328137920,1716930649166,-500.0,0.00027671,2]
[328137921,1716930649176,-500.0,0.00027671,2]
[328137922,1716930649185,-500.0,0.00027671,2]
[328137923,1716930649195,-500.0,0.00027671,2]
[328137924,1716930649204,-500.0,0.00027671,2]
[328137925,1716930649213,-500.0,0.00027671,2]
[328137926,1716930649223,-500.0,0.00027671,2]
[328137927,1716930649232,-500.0,0.00027671,2]
[328137928,1716930649242,-500.0,0.00027671,2]
[328137929,1716930649251,-500.0,0.00027671,2]
[328137930,1716930649261,-500.0,0.00027671,2]
[328137931,1716930649271,-500.0,0.00027671,2]
[328137932,1716930649281,-670.95,0.00027671,2]
[328137933,1716930649292,-813.82,0.00027671,2]
[328137934,1716930649306,-500.0,0.00027671,2]
[328137935,1716930649315,-500.0,0.00027671,2]
[328137936,1716930649325,-390.26693489,0.00027671,2]
[328137937,1716930649335,-500.0,0.00027671,2]
[328137938,1716930649344,-500.0,0.00027671,2]
[328137939,1716930649353,-500.0,0.00027671,2]
[328137940,1716930649363,-500.0,0.00027671,2]
[328137941,1716930649372,-682.1,0.00027671,2]
[328137942,1716930649385,-500.0,0.00027671,2]
[328137943,1716930649395,-613.37,0.00027671,2]